[Event "Titled Tuesday Blitz May 10 Early 2022"]
[White "Skliarov, Viktor"]
[Black "Migot, Tangi"]
[WhiteFideId "14106736"]
[BlackFideId "662445"]
[WhiteElo "2229"]
[BlackElo "2515"]
[Result "0-1"]
[Round "05"]
[TimeControl "180+1"]
[Date "2022.05.11"]
[WhiteClock "0:00:08"]
[BlackClock "0:00:04"]

1. e4 {[%clk 0:03:00]}  c5 {[%clk 0:03:00]} 2. Nf3 {[%clk 0:02:59]}  Nc6 {[%clk 0:03:00]} 3. Bb5 {[%clk 0:02:58]}  e6 {[%clk 0:02:58]} 4. Bxc6 {[%clk 0:02:58]}  bxc6 {[%clk 0:02:59]} 5. d3 {[%clk 0:02:56]}  Qc7 {[%clk 0:02:59]} 6. Qe2 {[%clk 0:02:56]}  Ne7 {[%clk 0:02:59]} 7. e5 {[%clk 0:02:53]}  f6 {[%clk 0:02:59]} 8. Bf4 {[%clk 0:02:39]}  Nf5 {[%clk 0:02:48]} 9. h4 {[%clk 0:02:20]}  fxe5 {[%clk 0:02:38]} 10. Nxe5 {[%clk 0:01:57]}  d6 {[%clk 0:02:23]} 11. Nc4 {[%clk 0:01:46]}  Be7 {[%clk 0:02:02]} 12. Nc3 {[%clk 0:01:06]}  O-O {[%clk 0:01:54]} 13. O-O-O {[%clk 0:01:03]}  e5 {[%clk 0:01:47]} 14. Bg5 {[%clk 0:00:52]}  Nd4 {[%clk 0:01:42]} 15. Qd2 {[%clk 0:00:51]}  Be6 {[%clk 0:01:27]} 16. Ne3 {[%clk 0:00:47]}  d5 {[%clk 0:01:18]} 17. Bxe7 {[%clk 0:00:43]}  Qxe7 {[%clk 0:01:18]} 18. Rde1 {[%clk 0:00:42]}  Qf6 {[%clk 0:01:01]} 19. f3 {[%clk 0:00:42]}  Rae8 {[%clk 0:00:25]} 20. Nf1 {[%clk 0:00:34]}  Nf5 {[%clk 0:00:20]} 21. Qg5 {[%clk 0:00:31]}  Qf7 {[%clk 0:00:15]} 22. Rxe5 {[%clk 0:00:23]}  Bc8 {[%clk 0:00:16]} 23. Rxe8 {[%clk 0:00:21]}  Rxe8 {[%clk 0:00:17]} 24. Nd2 {[%clk 0:00:16]}  h6 {[%clk 0:00:16]} 25. Qf4 {[%clk 0:00:16]}  Qg6 {[%clk 0:00:16]} 26. g4 {[%clk 0:00:15]}  Nd4 {[%clk 0:00:15]} 27. h5 {[%clk 0:00:14]}  Qe6 {[%clk 0:00:14]} 28. b3 {[%clk 0:00:14]}  Rf8 {[%clk 0:00:14]} 29. Qg3 {[%clk 0:00:11]}  Qe3 {[%clk 0:00:15]} 30. Re1 {[%clk 0:00:09]}  Qg5 {[%clk 0:00:13]} 31. Kd1 {[%clk 0:00:05]}  c4 {[%clk 0:00:08]} 32. Re5 {[%clk 0:00:05]}  Qf6 {[%clk 0:00:08]} 33. bxc4 {[%clk 0:00:05]}  dxc4 {[%clk 0:00:08]} 34. Nxc4 {[%clk 0:00:06]}  Nxf3 {[%clk 0:00:08]} 35. Re3 {[%clk 0:00:04]}  Nd4 {[%clk 0:00:09]} 36. Ne4 {[%clk 0:00:04]}  Qf1+ {[%clk 0:00:08]} 37. Kd2 {[%clk 0:00:04]}  Qa1 {[%clk 0:00:08]} 38. Qe5 {[%clk 0:00:04]}  c5 {[%clk 0:00:05]} 39. Nxc5 {[%clk 0:00:03]}  Rf2+ {[%clk 0:00:05]} 40. Re2 {[%clk 0:00:02]}  Rxe2+ {[%clk 0:00:06]} 41. Qxe2 {[%clk 0:00:03]}  Nxe2 {[%clk 0:00:06]} 42. Kxe2 {[%clk 0:00:03]}  Qxa2 {[%clk 0:00:05]} 43. Kd2 {[%clk 0:00:04]}  Bxg4 {[%clk 0:00:04]} 44. Ne4 {[%clk 0:00:05]}  Bxh5 {[%clk 0:00:04]} 45. Nc3 {[%clk 0:00:05]}  Qa6 {[%clk 0:00:04]} 46. Ne3 {[%clk 0:00:05]}  Qg6 {[%clk 0:00:05]} 47. Ne4 {[%clk 0:00:06]}  Bf3 {[%clk 0:00:04]} 48. Nd5 {[%clk 0:00:05]}  Qg2+ {[%clk 0:00:03]} 49. Ke3 {[%clk 0:00:06]}  Bxe4 {[%clk 0:00:03]} 50. dxe4 {[%clk 0:00:06]}  Qxc2 {[%clk 0:00:04]} 51. Ne7+ {[%clk 0:00:07]}  Kf7 {[%clk 0:00:04]} 52. Nf5 {[%clk 0:00:08]}  a5 {[%clk 0:00:04]} 0-1


[Site "https://www.chess.com"]

[Event "Titled Tuesday Blitz May 10 Early 2022"]
[White "Subelj, Jan"]
[Black "Estrada Nieto, Julian"]
[WhiteFideId "14618583"]
[BlackFideId "5101018"]
[WhiteElo "2328"]
[BlackElo "2252"]
[Result "1/2-1/2"]
[Round "05"]
[TimeControl "180+1"]
[Date "2022.05.11"]
[WhiteClock "0:00:05"]
[BlackClock "0:00:10"]

1. Nf3 {[%clk 0:03:00]}  d5 {[%clk 0:02:59]} 2. g3 {[%clk 0:02:58]}  Nf6 {[%clk 0:03:00]} 3. Bg2 {[%clk 0:02:59]}  Bf5 {[%clk 0:03:00]} 4. c4 {[%clk 0:02:57]}  c6 {[%clk 0:02:45]} 5. Qb3 {[%clk 0:02:53]}  Qb6 {[%clk 0:02:41]} 6. d3 {[%clk 0:02:53]}  Nbd7 {[%clk 0:02:29]} 7. O-O {[%clk 0:02:47]}  h6 {[%clk 0:02:29]} 8. Be3 {[%clk 0:02:46]}  Qxb3 {[%clk 0:02:21]} 9. axb3 {[%clk 0:02:46]}  a6 {[%clk 0:02:13]} 10. Bd4 {[%clk 0:02:34]}  e6 {[%clk 0:02:11]} 11. Nc3 {[%clk 0:02:30]}  Be7 {[%clk 0:02:00]} 12. Rfe1 {[%clk 0:02:27]}  O-O {[%clk 0:01:49]} 13. e4 {[%clk 0:02:22]}  dxe4 {[%clk 0:01:48]} 14. dxe4 {[%clk 0:02:22]}  Bh7 {[%clk 0:01:46]} 15. e5 {[%clk 0:02:20]}  Ne8 {[%clk 0:01:46]} 16. Ne4 {[%clk 0:02:20]}  Nc7 {[%clk 0:01:41]} 17. Nfd2 {[%clk 0:02:06]}  Rfd8 {[%clk 0:01:28]} 18. Rad1 {[%clk 0:02:03]}  Ne8 {[%clk 0:01:22]} 19. c5 {[%clk 0:02:00]}  Nc7 {[%clk 0:01:20]} 20. Nd6 {[%clk 0:01:59]}  Bxd6 {[%clk 0:01:18]} 21. cxd6 {[%clk 0:01:55]}  Nd5 {[%clk 0:01:19]} 22. Nc4 {[%clk 0:01:50]}  Bc2 {[%clk 0:01:10]} 23. Rd2 {[%clk 0:01:48]}  Bxb3 {[%clk 0:01:10]} 24. Na5 {[%clk 0:01:47]}  Ba4 {[%clk 0:01:05]} 25. b3 {[%clk 0:01:38]}  Bb5 {[%clk 0:01:04]} 26. Nxb7 {[%clk 0:01:38]}  Rdb8 {[%clk 0:01:04]} 27. Nc5 {[%clk 0:01:38]}  Rd8 {[%clk 0:00:54]} 28. Ra1 {[%clk 0:01:33]}  Nxc5 {[%clk 0:00:51]} 29. Bxc5 {[%clk 0:01:32]}  Rd7 {[%clk 0:00:47]} 30. f4 {[%clk 0:01:26]}  Rb8 {[%clk 0:00:46]} 31. Kf2 {[%clk 0:01:17]}  Kf8 {[%clk 0:00:45]} 32. Ra3 {[%clk 0:01:14]}  Ke8 {[%clk 0:00:45]} 33. h4 {[%clk 0:01:12]}  Rdb7 {[%clk 0:00:44]} 34. h5 {[%clk 0:01:09]}  Kd7 {[%clk 0:00:43]} 35. Be4 {[%clk 0:00:59]}  Kd8 {[%clk 0:00:25]} 36. Kf3 {[%clk 0:00:59]}  Ke8 {[%clk 0:00:23]} 37. g4 {[%clk 0:00:54]}  Nb6 {[%clk 0:00:23]} 38. Bxb6 {[%clk 0:00:45]}  Rxb6 {[%clk 0:00:22]} 39. f5 {[%clk 0:00:43]}  Kd7 {[%clk 0:00:21]} 40. Kf4 {[%clk 0:00:40]}  Rf8 {[%clk 0:00:21]} 41. Ra1 {[%clk 0:00:34]}  Rbb8 {[%clk 0:00:13]} 42. Rc2 {[%clk 0:00:27]}  Rbc8 {[%clk 0:00:13]} 43. Rac1 {[%clk 0:00:25]}  Rfe8 {[%clk 0:00:11]} 44. Rd2 {[%clk 0:00:21]}  Rf8 {[%clk 0:00:11]} 45. g5 {[%clk 0:00:19]}  hxg5+ {[%clk 0:00:09]} 46. Kxg5 {[%clk 0:00:20]}  f6+ {[%clk 0:00:10]} 47. exf6 {[%clk 0:00:19]}  gxf6+ {[%clk 0:00:10]} 48. Kf4 {[%clk 0:00:18]}  e5+ {[%clk 0:00:10]} 49. Ke3 {[%clk 0:00:19]}  Rg8 {[%clk 0:00:10]} 50. Rh1 {[%clk 0:00:19]}  Rg3+ {[%clk 0:00:09]} 51. Kf2 {[%clk 0:00:19]}  Rxb3 {[%clk 0:00:09]} 52. h6 {[%clk 0:00:19]}  Rh8 {[%clk 0:00:09]} 53. h7 {[%clk 0:00:12]}  Bc4 {[%clk 0:00:08]} 54. Rh6 {[%clk 0:00:12]}  Bd5 {[%clk 0:00:08]} 55. Bxd5 {[%clk 0:00:10]}  cxd5 {[%clk 0:00:09]} 56. Rxd5 {[%clk 0:00:10]}  Kc6 {[%clk 0:00:09]} 57. Rd2 {[%clk 0:00:08]}  Rb7 {[%clk 0:00:10]} 58. d7 {[%clk 0:00:06]}  Rxd7 {[%clk 0:00:10]} 59. Rxd7 {[%clk 0:00:06]}  Kxd7 {[%clk 0:00:10]} 60. Ke3 {[%clk 0:00:06]}  a5 {[%clk 0:00:09]} 61. Kd3 {[%clk 0:00:05]}  Ke7 {[%clk 0:00:09]} 62. Kc4 {[%clk 0:00:05]}  Kf7 {[%clk 0:00:10]} 63. Kb5 {[%clk 0:00:04]}  Kg7 {[%clk 0:00:09]} 64. Rg6+ {[%clk 0:00:04]}  Kf7 {[%clk 0:00:09]} 65. Rh6 {[%clk 0:00:04]}  Kg7 {[%clk 0:00:10]} 66. Rg6+ {[%clk 0:00:05]}  Kf7 {[%clk 0:00:10]} 67. Rh6 {[%clk 0:00:05]} 1/2-1/2


[Site "https://www.chess.com"]

[Event "Titled Tuesday Blitz May 10 Early 2022"]
[White "Sychev, Klementy"]
[Black "Bilych, Olexiy"]
[WhiteFideId "4114060"]
[BlackFideId "14156504"]
[WhiteElo "2564"]
[BlackElo "2176"]
[Result "1-0"]
[Round "05"]
[TimeControl "180+1"]
[Date "2022.05.10"]
[WhiteClock "0:01:24"]
[BlackClock "0:00:46"]

1. e4 {[%clk 0:03:00]}  e5 {[%clk 0:02:04]} 2. f4 {[%clk 0:02:57]}  exf4 {[%clk 0:02:03]} 3. Nf3 {[%clk 0:02:57]}  g5 {[%clk 0:02:04]} 4. h4 {[%clk 0:02:56]}  g4 {[%clk 0:02:02]} 5. Ne5 {[%clk 0:02:56]}  Nf6 {[%clk 0:01:48]} 6. Nxg4 {[%clk 0:02:54]}  d5 {[%clk 0:01:40]} 7. Nxf6+ {[%clk 0:02:51]}  Qxf6 {[%clk 0:01:41]} 8. Nc3 {[%clk 0:02:50]}  dxe4 {[%clk 0:01:38]} 9. Nxe4 {[%clk 0:02:47]}  Qe7 {[%clk 0:01:35]} 10. Qe2 {[%clk 0:02:47]}  f5 {[%clk 0:01:34]} 11. Nf6+ {[%clk 0:02:37]}  Kf7 {[%clk 0:01:34]} 12. Nd5 {[%clk 0:02:34]}  Qd6 {[%clk 0:01:27]} 13. Qh5+ {[%clk 0:02:33]}  Kg7 {[%clk 0:01:18]} 14. Qg5+ {[%clk 0:02:29]}  Kf7 {[%clk 0:01:18]} 15. Nxf4 {[%clk 0:02:11]}  Bh6 {[%clk 0:01:18]} 16. Bc4+ {[%clk 0:01:56]}  Kf8 {[%clk 0:01:12]} 17. Ne6+ {[%clk 0:01:55]}  Bxe6 {[%clk 0:00:59]} 18. Qf6+ {[%clk 0:01:46]}  Ke8 {[%clk 0:00:59]} 19. Qxh8+ {[%clk 0:01:43]}  Kd7 {[%clk 0:01:00]} 20. Qxh7+ {[%clk 0:01:36]}  Kd8 {[%clk 0:00:50]} 21. Qxh6 {[%clk 0:01:31]}  Qg3+ {[%clk 0:00:49]} 22. Kf1 {[%clk 0:01:31]}  Bxc4+ {[%clk 0:00:48]} 23. d3 {[%clk 0:01:31]}  Bd5 {[%clk 0:00:46]} 24. Qg5+ {[%clk 0:01:24]} 1-0


[Site "https://www.chess.com"]

[Event "Titled Tuesday Blitz May 10 Early 2022"]
[White "Toncheva, Nadya"]
[Black "Kohler, Aran"]
[WhiteFideId "2924056"]
[BlackFideId "1002856"]
[WhiteElo "1888"]
[BlackElo "2309"]
[Result "1-0"]
[Round "05"]
[TimeControl "180+1"]
[Date "2022.05.11"]
[WhiteClock "0:00:03"]
[BlackClock "0:00:02"]

1. e4 {[%clk 0:03:00]}  c5 {[%clk 0:02:53]} 2. Nf3 {[%clk 0:02:59]}  d6 {[%clk 0:02:53]} 3. c3 {[%clk 0:02:58]}  Nf6 {[%clk 0:02:51]} 4. Bd3 {[%clk 0:02:59]}  e5 {[%clk 0:02:50]} 5. O-O {[%clk 0:02:57]}  Nc6 {[%clk 0:02:50]} 6. Bc2 {[%clk 0:02:57]}  Bg4 {[%clk 0:02:50]} 7. h3 {[%clk 0:02:56]}  Bxf3 {[%clk 0:02:46]} 8. Qxf3 {[%clk 0:02:57]}  Be7 {[%clk 0:02:45]} 9. d3 {[%clk 0:02:55]}  O-O {[%clk 0:02:44]} 10. Be3 {[%clk 0:02:52]}  d5 {[%clk 0:02:41]} 11. Nd2 {[%clk 0:02:42]}  d4 {[%clk 0:02:40]} 12. Bg5 {[%clk 0:02:36]}  Nd7 {[%clk 0:02:38]} 13. Bxe7 {[%clk 0:02:35]}  Qxe7 {[%clk 0:02:37]} 14. Rfe1 {[%clk 0:02:22]}  Kh8 {[%clk 0:02:37]} 15. Nf1 {[%clk 0:02:22]}  g6 {[%clk 0:02:36]} 16. Ng3 {[%clk 0:02:11]}  f6 {[%clk 0:02:28]} 17. h4 {[%clk 0:02:06]}  Rf7 {[%clk 0:02:27]} 18. h5 {[%clk 0:02:06]}  Nf8 {[%clk 0:02:16]} 19. Bb3 {[%clk 0:01:57]}  Ne6 {[%clk 0:02:14]} 20. Qg4 {[%clk 0:01:51]}  Re8 {[%clk 0:01:49]} 21. hxg6 {[%clk 0:01:51]}  hxg6 {[%clk 0:01:37]} 22. Qxg6 {[%clk 0:01:49]}  Rg8 {[%clk 0:01:24]} 23. Qh5+ {[%clk 0:01:45]}  Rh7 {[%clk 0:01:23]} 24. Qf5 {[%clk 0:01:40]}  Ncd8 {[%clk 0:01:20]} 25. Kf1 {[%clk 0:01:38]}  Rg5 {[%clk 0:01:20]} 26. Qf3 {[%clk 0:01:37]}  Nf4 {[%clk 0:01:11]} 27. cxd4 {[%clk 0:00:59]}  cxd4 {[%clk 0:00:58]} 28. Rec1 {[%clk 0:00:52]}  Nc6 {[%clk 0:00:58]} 29. a3 {[%clk 0:00:43]}  Rh2 {[%clk 0:00:40]} 30. Ke1 {[%clk 0:00:23]}  Qh7 {[%clk 0:00:22]} 31. Kd2 {[%clk 0:00:21]}  Qh6 {[%clk 0:00:18]} 32. Kc2 {[%clk 0:00:10]}  Na5 {[%clk 0:00:12]} 33. Bd5 {[%clk 0:00:03]}  Nc6 {[%clk 0:00:06]} 34. Rh1 {[%clk 0:00:03]}  Rg7 {[%clk 0:00:04]} 35. Rxh2 {[%clk 0:00:03]}  Qxh2 {[%clk 0:00:03]} 36. Rh1 {[%clk 0:00:03]}  Qxh1 {[%clk 0:00:02]} 37. Nxh1 {[%clk 0:00:04]}  Rxg2 {[%clk 0:00:02]} 38. Ng3 {[%clk 0:00:03]} 1-0


[Site "https://www.chess.com"]

[Event "Titled Tuesday Blitz May 10 Early 2022"]
[White "Van den Dikkenberg, Erik"]
[Black "Shukhman, Anna"]
[WhiteFideId "1005880"]
[BlackFideId "54180058"]
[WhiteElo "2118"]
[BlackElo "1726"]
[Result "0-1"]
[Round "05"]
[TimeControl "180+1"]
[Date "2022.05.11"]
[WhiteClock "0:00:09"]
[BlackClock "0:00:37"]

1. e4 {[%clk 0:03:00]}  c5 {[%clk 0:02:59]} 2. Nc3 {[%clk 0:03:00]}  e6 {[%clk 0:02:58]} 3. f4 {[%clk 0:03:01]}  d5 {[%clk 0:02:57]} 4. Nf3 {[%clk 0:03:01]}  dxe4 {[%clk 0:02:56]} 5. Nxe4 {[%clk 0:03:01]}  Nc6 {[%clk 0:02:56]} 6. Bb5 {[%clk 0:02:59]}  Nf6 {[%clk 0:02:54]} 7. Bxc6+ {[%clk 0:02:58]}  bxc6 {[%clk 0:02:53]} 8. Qe2 {[%clk 0:02:51]}  Be7 {[%clk 0:02:50]} 9. O-O {[%clk 0:02:49]}  O-O {[%clk 0:02:47]} 10. d3 {[%clk 0:02:49]}  Rb8 {[%clk 0:02:42]} 11. b3 {[%clk 0:02:48]}  Nd5 {[%clk 0:02:36]} 12. Ne5 {[%clk 0:02:38]}  Bb7 {[%clk 0:02:17]} 13. Kh1 {[%clk 0:02:29]}  f6 {[%clk 0:02:10]} 14. Nc4 {[%clk 0:02:21]}  Qd7 {[%clk 0:02:09]} 15. Bb2 {[%clk 0:02:13]}  Rfe8 {[%clk 0:02:07]} 16. Rae1 {[%clk 0:02:10]}  Ba6 {[%clk 0:02:01]} 17. a3 {[%clk 0:01:50]}  Bf8 {[%clk 0:01:54]} 18. Qf3 {[%clk 0:01:45]}  Rbd8 {[%clk 0:01:38]} 19. Ne3 {[%clk 0:01:38]}  Nxe3 {[%clk 0:01:32]} 20. Rxe3 {[%clk 0:01:33]}  Qf7 {[%clk 0:01:22]} 21. Qg3 {[%clk 0:01:27]}  Kh8 {[%clk 0:01:19]} 22. Rfe1 {[%clk 0:01:24]}  Bc8 {[%clk 0:01:17]} 23. Qh4 {[%clk 0:01:22]}  Be7 {[%clk 0:01:14]} 24. Rh3 {[%clk 0:01:13]}  h6 {[%clk 0:01:09]} 25. Rg3 {[%clk 0:00:41]}  e5 {[%clk 0:01:03]} 26. fxe5 {[%clk 0:00:36]}  f5 {[%clk 0:01:00]} 27. Ng5 {[%clk 0:00:32]}  Qg6 {[%clk 0:00:47]} 28. Bc1 {[%clk 0:00:18]}  Rd4 {[%clk 0:00:46]} 29. Qh3 {[%clk 0:00:17]}  f4 {[%clk 0:00:45]} 30. Qh4 {[%clk 0:00:11]}  fxg3 {[%clk 0:00:44]} 31. Qxg3 {[%clk 0:00:11]}  Bxg5 {[%clk 0:00:43]} 32. Bxg5 {[%clk 0:00:10]}  Qxg5 {[%clk 0:00:43]} 33. Qf2 {[%clk 0:00:09]}  Be6 {[%clk 0:00:37]} 0-1


[Site "https://www.chess.com"]

[Event "Titled Tuesday Blitz May 10 Early 2022"]
[White "Vignesh, N R"]
[Black "Shimanov, Aleksandr"]
[WhiteFideId "25012215"]
[BlackFideId "4198603"]
[WhiteElo "2363"]
[BlackElo "2605"]
[Result "1/2-1/2"]
[Round "05"]
[TimeControl "180+1"]
[Date "2022.05.10"]
[WhiteClock "0:00:11"]
[BlackClock "0:00:08"]

1. d4 {[%clk 0:03:00]}  Nf6 {[%clk 0:02:59]} 2. c4 {[%clk 0:03:00]}  g6 {[%clk 0:02:59]} 3. g3 {[%clk 0:02:59]}  Bg7 {[%clk 0:02:59]} 4. Bg2 {[%clk 0:02:59]}  O-O {[%clk 0:03:00]} 5. Nc3 {[%clk 0:02:59]}  c5 {[%clk 0:02:53]} 6. dxc5 {[%clk 0:02:53]}  Na6 {[%clk 0:02:51]} 7. Nf3 {[%clk 0:02:50]}  Nxc5 {[%clk 0:02:52]} 8. O-O {[%clk 0:02:49]}  d6 {[%clk 0:02:52]} 9. Be3 {[%clk 0:02:47]}  Be6 {[%clk 0:02:48]} 10. b3 {[%clk 0:02:38]}  Rb8 {[%clk 0:02:46]} 11. Rc1 {[%clk 0:02:36]}  a6 {[%clk 0:02:46]} 12. Qd2 {[%clk 0:02:31]}  b5 {[%clk 0:02:41]} 13. cxb5 {[%clk 0:02:30]}  axb5 {[%clk 0:02:41]} 14. Nd4 {[%clk 0:02:29]}  Bd7 {[%clk 0:02:40]} 15. b4 {[%clk 0:02:23]}  Ne6 {[%clk 0:02:39]} 16. Nc6 {[%clk 0:02:22]}  Bxc6 {[%clk 0:02:38]} 17. Bxc6 {[%clk 0:02:22]}  Ng4 {[%clk 0:02:19]} 18. Nxb5 {[%clk 0:02:21]}  Ne5 {[%clk 0:01:18]} 19. a4 {[%clk 0:02:17]}  Nxc6 {[%clk 0:01:12]} 20. Rxc6 {[%clk 0:02:18]}  Qd7 {[%clk 0:01:03]} 21. Rfc1 {[%clk 0:02:17]}  d5 {[%clk 0:01:03]} 22. Nd4 {[%clk 0:02:07]}  Nd8 {[%clk 0:01:02]} 23. Ra6 {[%clk 0:02:00]}  e5 {[%clk 0:01:01]} 24. Nb5 {[%clk 0:01:55]}  d4 {[%clk 0:01:01]} 25. Bh6 {[%clk 0:01:54]}  Bxh6 {[%clk 0:00:59]} 26. Qxh6 {[%clk 0:01:55]}  Ne6 {[%clk 0:01:00]} 27. Ra7 {[%clk 0:01:39]}  Qd5 {[%clk 0:00:58]} 28. Qd2 {[%clk 0:01:29]}  e4 {[%clk 0:00:56]} 29. Nc7 {[%clk 0:01:25]}  Nxc7 {[%clk 0:00:47]} 30. Raxc7 {[%clk 0:01:26]}  Qb3 {[%clk 0:00:42]} 31. R7c4 {[%clk 0:01:20]}  e3 {[%clk 0:00:36]} 32. Qxd4 {[%clk 0:00:54]}  exf2+ {[%clk 0:00:35]} 33. Qxf2 {[%clk 0:00:52]}  Qxa4 {[%clk 0:00:36]} 34. Rb1 {[%clk 0:00:45]}  Qa2 {[%clk 0:00:29]} 35. Rcc1 {[%clk 0:00:44]}  Rfe8 {[%clk 0:00:28]} 36. e3 {[%clk 0:00:39]}  Qe6 {[%clk 0:00:28]} 37. Rc3 {[%clk 0:00:36]}  Rb5 {[%clk 0:00:24]} 38. Rc5 {[%clk 0:00:32]}  Qe4 {[%clk 0:00:16]} 39. Rf1 {[%clk 0:00:28]}  Rb7 {[%clk 0:00:14]} 40. b5 {[%clk 0:00:20]}  Qxe3 {[%clk 0:00:12]} 41. Qxe3 {[%clk 0:00:20]}  Rxe3 {[%clk 0:00:13]} 42. Rb1 {[%clk 0:00:20]}  Re6 {[%clk 0:00:13]} 43. Rc4 {[%clk 0:00:20]}  h5 {[%clk 0:00:13]} 44. Rcb4 {[%clk 0:00:20]}  Reb6 {[%clk 0:00:11]} 45. Kf2 {[%clk 0:00:19]}  Re6 {[%clk 0:00:10]} 46. b6 {[%clk 0:00:19]}  Kf8 {[%clk 0:00:11]} 47. h4 {[%clk 0:00:19]}  Ke7 {[%clk 0:00:11]} 48. Re1 {[%clk 0:00:18]}  Rxe1 {[%clk 0:00:09]} 49. Kxe1 {[%clk 0:00:19]}  Kd6 {[%clk 0:00:10]} 50. Ke2 {[%clk 0:00:19]}  Kc5 {[%clk 0:00:10]} 51. Rb1 {[%clk 0:00:17]}  Rxb6 {[%clk 0:00:09]} 52. Rc1+ {[%clk 0:00:14]}  Kd6 {[%clk 0:00:08]} 53. Rc3 {[%clk 0:00:13]}  Ke6 {[%clk 0:00:08]} 54. Kf3 {[%clk 0:00:14]}  Kf6 {[%clk 0:00:08]} 55. Rd3 {[%clk 0:00:14]}  Re6 {[%clk 0:00:06]} 56. Rc3 {[%clk 0:00:14]}  Kf5 {[%clk 0:00:06]} 57. Rc5+ {[%clk 0:00:14]}  Re5 {[%clk 0:00:06]} 58. Rc3 {[%clk 0:00:15]}  f6 {[%clk 0:00:07]} 59. Rb3 {[%clk 0:00:15]}  Rd5 {[%clk 0:00:07]} 60. Rc3 {[%clk 0:00:15]}  Ke5 {[%clk 0:00:08]} 61. Re3+ {[%clk 0:00:15]}  Kf5 {[%clk 0:00:08]} 62. Rb3 {[%clk 0:00:14]}  Rc5 {[%clk 0:00:08]} 63. Ra3 {[%clk 0:00:14]}  Ke5 {[%clk 0:00:09]} 64. Re3+ {[%clk 0:00:14]}  Kd5 {[%clk 0:00:09]} 65. Rd3+ {[%clk 0:00:14]}  Ke6 {[%clk 0:00:10]} 66. Re3+ {[%clk 0:00:14]}  Kf5 {[%clk 0:00:10]} 67. Rd3 {[%clk 0:00:14]}  g5 {[%clk 0:00:10]} 68. hxg5 {[%clk 0:00:14]}  fxg5 {[%clk 0:00:10]} 69. g4+ {[%clk 0:00:14]}  hxg4+ {[%clk 0:00:10]} 70. Kg3 {[%clk 0:00:15]}  Re5 {[%clk 0:00:09]} 71. Rc3 {[%clk 0:00:15]}  Re4 {[%clk 0:00:09]} 72. Rc5+ {[%clk 0:00:14]}  Kg6 {[%clk 0:00:09]} 73. Rc8 {[%clk 0:00:14]}  Rb4 {[%clk 0:00:07]} 74. Rd8 {[%clk 0:00:14]}  Kf6 {[%clk 0:00:08]} 75. Rc8 {[%clk 0:00:13]}  Kf5 {[%clk 0:00:08]} 76. Rf8+ {[%clk 0:00:13]}  Kg6 {[%clk 0:00:08]} 77. Rg8+ {[%clk 0:00:13]}  Kh6 {[%clk 0:00:08]} 78. Rh8+ {[%clk 0:00:13]}  Kg7 {[%clk 0:00:08]} 79. Ra8 {[%clk 0:00:13]}  Rf4 {[%clk 0:00:09]} 80. Rb8 {[%clk 0:00:12]}  Kg6 {[%clk 0:00:09]} 81. Rg8+ {[%clk 0:00:11]}  Kf5 {[%clk 0:00:09]} 82. Rf8+ {[%clk 0:00:11]}  Ke4 {[%clk 0:00:09]} 83. Re8+ {[%clk 0:00:11]}  Kd5 {[%clk 0:00:10]} 84. Rg8 {[%clk 0:00:11]}  Rf5 {[%clk 0:00:07]} 85. Kxg4 {[%clk 0:00:10]}  Re5 {[%clk 0:00:07]} 86. Rxg5 {[%clk 0:00:10]}  Rxg5+ {[%clk 0:00:08]} 87. Kxg5 {[%clk 0:00:11]} 1/2-1/2


[Site "https://www.chess.com"]

[Event "Titled Tuesday Blitz May 10 Early 2022"]
[White "Wagh Suyog"]
[Black "Kovalenko, Igor"]
[WhiteFideId "25071688"]
[BlackFideId "14117908"]
[WhiteElo "2181"]
[BlackElo "2560"]
[Result "0-1"]
[Round "05"]
[TimeControl "180+1"]
[Date "2022.05.10"]
[WhiteClock "0:00:01"]
[BlackClock "0:00:42"]

1. e4 {[%clk 0:03:00]}  c5 {[%clk 0:02:59]} 2. Nf3 {[%clk 0:03:00]}  e6 {[%clk 0:03:00]} 3. g3 {[%clk 0:03:00]}  d5 {[%clk 0:03:00]} 4. Nc3 {[%clk 0:02:48]}  Nf6 {[%clk 0:02:58]} 5. exd5 {[%clk 0:02:47]}  exd5 {[%clk 0:02:59]} 6. d4 {[%clk 0:02:47]}  Nc6 {[%clk 0:02:57]} 7. Bg2 {[%clk 0:02:47]}  Be7 {[%clk 0:02:56]} 8. O-O {[%clk 0:02:45]}  O-O {[%clk 0:02:57]} 9. dxc5 {[%clk 0:02:45]}  Bxc5 {[%clk 0:02:56]} 10. Bg5 {[%clk 0:02:42]}  Be6 {[%clk 0:02:56]} 11. a3 {[%clk 0:02:27]}  Be7 {[%clk 0:02:44]} 12. Nb5 {[%clk 0:02:24]}  h6 {[%clk 0:02:43]} 13. Be3 {[%clk 0:02:20]}  Bg4 {[%clk 0:02:39]} 14. h3 {[%clk 0:02:17]}  Bh5 {[%clk 0:02:39]} 15. Nbd4 {[%clk 0:02:02]}  Bd6 {[%clk 0:02:36]} 16. Nf5 {[%clk 0:01:57]}  Re8 {[%clk 0:02:33]} 17. Nxd6 {[%clk 0:01:53]}  Qxd6 {[%clk 0:02:33]} 18. Bf4 {[%clk 0:01:51]}  Qc5 {[%clk 0:02:30]} 19. Be3 {[%clk 0:01:44]}  Qb5 {[%clk 0:02:28]} 20. Qc1 {[%clk 0:01:32]}  Rac8 {[%clk 0:02:25]} 21. Re1 {[%clk 0:01:19]}  Bg6 {[%clk 0:02:19]} 22. c3 {[%clk 0:01:17]}  Be4 {[%clk 0:02:14]} 23. Bf1 {[%clk 0:01:15]}  Qa5 {[%clk 0:02:14]} 24. Nd2 {[%clk 0:01:11]}  Bg6 {[%clk 0:02:09]} 25. Nb3 {[%clk 0:01:09]}  Qd8 {[%clk 0:02:04]} 26. Nd4 {[%clk 0:01:05]}  Ne5 {[%clk 0:02:00]} 27. Bf4 {[%clk 0:01:01]}  Nc4 {[%clk 0:01:52]} 28. Rxe8+ {[%clk 0:00:59]}  Qxe8 {[%clk 0:01:52]} 29. b3 {[%clk 0:00:57]}  Na5 {[%clk 0:01:44]} 30. Qb2 {[%clk 0:00:57]}  Ne4 {[%clk 0:01:43]} 31. Rc1 {[%clk 0:00:52]}  a6 {[%clk 0:01:42]} 32. f3 {[%clk 0:00:29]}  Nf6 {[%clk 0:01:31]} 33. Kf2 {[%clk 0:00:29]}  Qd7 {[%clk 0:01:31]} 34. g4 {[%clk 0:00:28]}  Nc6 {[%clk 0:01:27]} 35. Qd2 {[%clk 0:00:27]}  Nh7 {[%clk 0:01:14]} 36. h4 {[%clk 0:00:26]}  Nf8 {[%clk 0:01:14]} 37. h5 {[%clk 0:00:24]}  Bh7 {[%clk 0:01:14]} 38. g5 {[%clk 0:00:24]}  hxg5 {[%clk 0:01:12]} 39. Bxg5 {[%clk 0:00:25]}  Nxd4 {[%clk 0:01:13]} 40. cxd4 {[%clk 0:00:22]}  Ne6 {[%clk 0:01:13]} 41. Be3 {[%clk 0:00:21]}  Rxc1 {[%clk 0:01:07]} 42. Qxc1 {[%clk 0:00:22]}  Bf5 {[%clk 0:01:08]} 43. h6 {[%clk 0:00:21]}  Qe7 {[%clk 0:01:07]} 44. Kg3 {[%clk 0:00:18]}  gxh6 {[%clk 0:01:06]} 45. Bxh6 {[%clk 0:00:08]}  Nxd4 {[%clk 0:01:04]} 46. Qc3 {[%clk 0:00:07]}  Ne6 {[%clk 0:00:57]} 47. Be3 {[%clk 0:00:04]}  Qd6+ {[%clk 0:00:54]} 48. f4 {[%clk 0:00:01]}  d4 {[%clk 0:00:55]} 49. Qd2 {[%clk 0:00:01]}  Qc5 {[%clk 0:00:48]} 50. Bf2 {[%clk 0:00:02]}  Qxa3 {[%clk 0:00:46]} 51. Bc4 {[%clk 0:00:02]}  b5 {[%clk 0:00:41]} 52. Bxe6 {[%clk 0:00:02]}  Bxe6 {[%clk 0:00:42]} 53. Bxd4 {[%clk 0:00:02]}  Qxb3+ {[%clk 0:00:42]} 54. Kh4 {[%clk 0:00:02]}  Qh3+ {[%clk 0:00:42]} 55. Kg5 {[%clk 0:00:03]}  Qf5+ {[%clk 0:00:41]} 56. Kh4 {[%clk 0:00:01]}  Qg4# {[%clk 0:00:42]} 0-1


[Site "https://www.chess.com"]